Cogmind - Beta 17 @@@ ROGUE MODE // 2026.08.08 @ 21:06:43 Player: C-Log Result: Smashed by cave-in Performance ------------- Evolutions (0) 0 Regions Visited (1) 200 Robots Destroyed (4) 20 Value Destroyed (28) 28 Prototype IDs (0) 0 Alien Tech Used (0) 0 Bonus (0) 0 TOTAL SCORE: 248 Bonus ------- None Cogmind --------- Core Integrity 0/250 Matter 68/300 Energy 250/250 System Corruption 15% Temperature Cool (6) Movement Walking (190) Ox1 Location -10/Materials Parts ------- > --- POWER (1) -------- Ion Engine > --- PROPULSION (2) --- Aluminum Leg > --- UTILITY (2) ------ Medium Storage Unit > --- WEAPON (2) ------- EM Pulse Gun > --- INVENTORY (10) --- Ion Engine Light Treads Light Treads Large Storage Unit Structural Scanner Seismic Detector EM Pulse Gun Peak State ------------ > --- POWER ------------ Ion Engine > --- PROPULSION ------- Aluminum Leg Aluminum Leg > --- UTILITY ---------- Small Storage Unit Seismic Detector > --- WEAPON ----------- EM Pulse Gun Assault Rifle > --- INVENTORY -------- Ion Engine Light Treads Light Treads Wheel EM Pulse Gun [Rating: 7] Favorites ----------- Power Ion Engine Engine Ion Engine Propulsion Aluminum Leg Leg Aluminum Leg Utility Small Storage Unit Device Seismic Detector Storage Small Storage Unit Processor Signal Interpreter Weapon Assault Rifle Energy Gun EM Pulse Gun Ballistic Gun Assault Rifle Special Weapon Mining Laser Build | -11 -10 ------- Run | Yrd Mat Slots Evolved . | . . Power . | . . Propulsion . | . . Utility . | . . Weapon . | . . Parts Attached 10 | 7 3 Power 1 | 1 . Engine 1 | 1 . Core . | . . Reactor . | . . Propulsion 2 | 2 . Treads . | . . Leg 2 | 2 . Wheel . | . . Hover . | . . Flight . | . . Utility 4 | 2 2 Device 1 | 1 . Storage 2 | 1 1 Processor 1 | . 1 Hackware . | . . Protection . | . . Artifact . | . . Weapon 3 | 2 1 Energy Gun 1 | 1 . Energy Cannon . | . . Ballistic Gun 1 | 1 . Ballistic Cannon . | . . Launcher . | . . Special Weapon 1 | . 1 Impact Weapon . | . . Slashing Weapon . | . . Piercing Weapon . | . . Special Melee Weapon . | . . Unidentified Prototypes . | . . Parts Lost 4 | . 4 Power . | . . Propulsion 1 | . 1 Utility 1 | . 1 Weapon 2 | . 2 Highest Loss Streak 4 | . 4 To Critical Strikes . | . . Average Backups 6 | 3 7 Power . | . 1 Propulsion 2 | 1 2 Utility 2 | . 2 Weapon 1 | . 1 Tool/Special . | . . Unused Backups 8 | . 8 Power 1 | . 1 Propulsion 3 | . 3 Utility 3 | . 3 Weapon 1 | . 1 Tool/Special . | . . Average Slot Usage (%) 99 | . 99 Engine 14 | . 14 Leg 27 | . 27 Device 10 | . 10 Storage 14 | . 14 Processor 2 | . 2 Ballistic Gun 14 | . 14 Special Weapon 13 | . 13 Peak Build Rating 7 | 7 7 Average Rating 6 | 5 6 On Entrance 3 | . 7 Avg Prop Armor Cover (%) . | . . Naked Turns . | . . Heaviest Build 19 | 15 19 Greatest Support 20 | 20 20 Greatest Overweight (x) 2 | 2 . Average Overweight (x) . | . . Largest Inventory Capacity 10 | 8 10 Average Capacity 8 | 7 8 Most Carried 8 | 7 8 Average Carried 6 | 3 7 Final Capacity 10 | 8 10 Final Carried 7 | 7 7 Class Distribution -------------------- 100% | Mutant Dominant Class ---------------- Mutant | -10/Materials Resources | -11 -10 ----------- Run | Yrd Mat Matter Collected 97 | 97 . Remotely . | . . Salvage Created 88 | 88 . Parts 11 | 11 . Haulers Intercepted . | . . Recyclers Shooed 1 | 1 . Parts Field Recycled . | . . Retrieved Matter . | . . Parts Self-Destructed . | . . Prevented . | . . Parts Restored . | . . Kills | -11 -10 ------- Run | Yrd Mat Combat Hostiles Destroyed . | . . Classes Destroyed 1 | 1 . Tunneler 4 | 4 . Best Kill Streak 3 | 3 . Combat Bots Only . | . . Max Kills in Single Turn 1 | 1 . Gunslinging . | . . Exploded . | . . Melee . | . . Uniques/NPCs Destroyed . | . . Combat | -11 -10 -------- Run | Yrd Mat Hostile Shots Fired . | . . Missed . | . . Hits . | . . Damage Taken 844 | . 844 Core 263 | . 263 Absorbed by Shields . | . . Core Remaining (%) 100 | 100 . Volleys Fired 46 | 6 40 Largest 2 | 2 2 Hottest 120 | 60 120 Shots Fired 56 | 9 47 Gun 24 | 9 15 Cannon . | . . Launcher . | . . Special 32 | . 32 Kinetic 13 | 6 7 Thermal 32 | . 32 Explosive . | . . Electromagnetic 11 | 3 8 Robot Hit Streak 4 | 4 . Robot Miss Streak 1 | 1 . Penetration Max . | . . Secondary Targets . | . . Shots Hit Robots 7 | 7 . Core Hits 5 | 5 . Critical Kills . | . . Critical Parts Destroyed . | . . Critical Strikes . | . . Melee Attacks . | . . Impact . | . . Slashing . | . . Piercing . | . . Sneak Attacks . | . . Combat Hostiles . | . . Follow-up Attacks . | . . Damage Inflicted 109 | 85 24 Guns 85 | 85 . Cannons . | . . Explosions . | . . Melee . | . . Ramming . | . . Kinetic 73 | 73 . Thermal 24 | . 24 Explosive . | . . Electromagnetic 12 | 12 . Impact . | . . Slashing . | . . Piercing . | . . Highest Corruption 15 | . 15 Average Corruption 8 | . 8 Corruption Purged . | . . Corruption Blocked . | . . Overload Shots . | . . Overflow Damage . | . . Projectiles . | . . Explosions . | . . Melee . | . . Knockbacks . | . . Impact . | . . Kinetic . | . . Secondary . | . . Self-Inflicted Damage . | . . Shots . | . . Rammed . | . . Targets Rammed . | . . Kicked . | . . Crushed . | . . Highest Temperature 62 | . 62 Average Temperature 19 | . 19 Received Heat Transfer . | . . Siege Activations . | . . Martial Activations . | . . Shielding Activations . | . . Robots Disrupted . | . . Combat Hostiles . | . . Robots Corrupted . | . . Combat Hostiles . | . . Parts Fried . | . . Impact Corruptions . | . . Robots Melted . | . . Combat Hostiles . | . . Parts Melted . | . . Heat Transferred 50 | . 50 Parts Sabotaged . | . . Parts Stolen . | . . Parts Stripped . | . . Power Chain Reactions . | . . Alert | -11 -10 ------- Run | Yrd Mat Maximum Alert Level . | . . Low Security (%) 100 | 100 100 Level 1 . | . . Level 2 . | . . Level 3 . | . . Level 4 . | . . Level 5 . | . . High Security . | . . Max Security . | . . Peak Influence 16 | 10 16 Initial 6 | . 6 Average 1 | 1 1 Influence Increases 46 | 20 26 Destroy 0b10 Robot/NC 20 | 20 . Destroy Structure 11 | . 11 Partial Spotted 15 | . 15 Influence Decreases 46 | 10 36 Entered New Map 4 | . 4 Time Decay 41 | 10 31 Lost Part 1 | . 1 Squads Dispatched . | . . Investigation . | . . Extermination . | . . Reinforcement . | . . Assault . | . . Garrison . | . . Intercept . | . . Searches Triggered . | . . Construction Impeded . | . . Haulers Reinforced . | . . Active Scanning Responses . | . . Cargo Convoy Interrupts . | . . Stealth | -11 -10 --------- Run | Yrd Mat Distress Signals . | . . Communications Jammed . | . . Distress Signals . | . . Times Spotted . | . . Peak Tracking Total . | . . Tactical Retreats . | . . Traps | -11 -10 ------- Run | Yrd Mat Traps Triggered 1 | . 1 Indirectly . | . . Trap Hack Attempts . | . . Triggered . | . . Disarmed . | . . Reprogrammed . | . . Reused . | . . Traps Extracted . | . . Installed . | . . Triggered . | . . Machines | -11 -10 ---------- Run | Yrd Mat Machines Disabled . | . . Max in Single Turn . | . . Machines Repaired . | . . Machines Dismantled . | . . Machines Sabotaged . | . . Overloaded Fab Kills . | . . Hacking | -11 -10 --------- Run | Yrd Mat Machines Accessed . | . . Terminals . | . . Fabricators . | . . Repair Stations . | . . Recycling Units . | . . Scanalyzers . | . . Garrison Access . | . . Total Hacks . | . . Successful . | . . Failed . | . . Catastrophic . | . . Database Lockouts . | . . Manual . | . . Terminals . | . . Fabricators . | . . Repair Stations . | . . Recycling Units . | . . Scanalyzers . | . . Garrison Access . | . . Terminal Hacks . | . . Fabricator Hacks . | . . Repair Station Hacks . | . . Recycling Unit Hacks . | . . Scanalyzer . | . . Garrison Access Hacks . | . . Unauthorized Hacks . | . . Terminals . | . . Fabricators . | . . Repair Stations . | . . Recycling Units . | . . Scanalyzers . | . . Garrison Access . | . . Data Cores Recovered . | . . Used . | . . Hacking Detections . | . . Full Trace Events . | . . Feedback Events . | . . Feedback Blocked . | . . Robot Schematics Acquired . | . . Robots Built . | . . Authchips . | . . Time . | . . Total Robot Build Rating . | . . Part Schematics Acquired . | . . Parts Built . | . . Authchips . | . . Time . | . . Total Part Build Rating . | . . Part Studies Acquired . | . . Parts Repaired . | . . Time . | . . Parts Recycled . | . . Recycled Matter . | . . Retrieved Matter . | . . Retrieved Components . | . . Parts Scanalyzed . | . . Part Schematics Acquired . | . . Parts Damaged . | . . Bothacking | -11 -10 ------------ Run | Yrd Mat Used RIF Installer . | . . Robots Hacked . | . . Non-combat . | . . Combat . | . . Robot Hacks Applied . | . . Relay Couplers Released . | . . Fabnet Peak Effective % . | . . Robots Rewired . | . . Allies Hacked . | . . Hacks Repelled . | . . Allies | -11 -10 -------- Run | Yrd Mat Total Allies . | . . Largest Group . | . . Highest-Rated Group . | . . Highest-Rated Ally . | . . Total Orders . | . . Ally Attacks . | . . Total Damage . | . . Kills . | . . Allies Corrupted . | . . Allies Melted . | . . Intel | -11 -10 ------- Run | Yrd Mat Active Infowar (turns) 278 | 40 238 Seismic 278 | 40 238 Robot Analysis Total . | . . Derelict Logs Recovered . | . . Drone Launches . | . . Drone Recoveries . | . . Exploration | -11 -10 ------------- Run | Yrd Mat Turns Passed 407 | 96 311 Spaces Moved 180 | 54 126 Core 7 | 7 . Treads . | . . Legs 173 | 47 126 Wheels . | . . Hover . | . . Flight . | . . Fastest Speed 50 | 50 120 Average Speed 119 | 119 120 Slowest Speed 190 | 190 120 Overloaded Moves . | . . Propulsion Burnouts . | . . Robots Hopped . | . . Potential Cave-ins 17 | . 17 Cave-ins Triggered 5 | . 5 Exploration Rate (%) 13 | 4 23 Regions Visited 1 Branch Regions . Pre-discovered Areas . | . . Known Exits Taken . | . . Unknown Exits Taken 1 | 1 . Scrap Searched . | . . Spaces Dug 30 | . 30 Terrain Destroyed 30 | . 30 Melee . | . . Projectile 30 | . 30 AOE . | . . Terrain Rammed . | . . Walls Destroyed . | . . Machines Disabled . | . . Actions | -11 -10 --------- Run | Yrd Mat Total 249 | 73 176 Wait . | . . Move 179 | 53 126 Hop . | . . Pick Up 10 | 7 3 Fast Attach 7 | 7 . Attach 1 | . 1 Detach . | . . Swap 3 | . 3 Drop 3 | . 3 Fire 46 | 6 40 Melee . | . . Ram . | . . Kick . | . . Crush . | . . Escape Stasis . | . . Rewire . | . . Trap . | . . Miscellaneous . | . . Route ------- -11/Scrapyard -10/Materials (discovered 1 exit: *Mat) History --------- Turn | Location | Event 2 | -11/Scrapyard | Met Revision 17 10 | -11/Scrapyard | Discovered new exit (range 15) 97 | -11/Scrapyard | Entered Materials 324 | -10/Materials | Discovered new exit (range 9) 331 | -10/Materials | Build established: Mutant 336 | -10/Materials | Identified exit to Materials 383 | -10/Materials | Crushed by falling debris 397 | -10/Materials | Crushed by falling debris 397 | -10/Materials | System corruption reached 10% 403 | -10/Materials | Crushed by falling debris 403 | -10/Materials | Core integrity fell below 50% 404 | -10/Materials | Crushed by falling debris 404 | -10/Materials | Core integrity fell below 20% 409 | -10/Materials | Crushed by falling debris 409 | -10/Materials | Smashed by cave-in Last Messages --------------- EXIT=IDENTIFIED: MATERIALS U-05 Engineer lays Concrete. The unstable cave ceiling collapses. Crushed by falling debris. Mining Laser destroyed. System corrupted by crushing effect (+5). The unstable cave ceiling collapses. Crushed by falling debris. Signal Interpreter destroyed. System corrupted by crushing effect (+2). Aluminum Leg destroyed. System corrupted by crushing effect (+5). The unstable cave ceiling collapses. Crushed by falling debris. Assault Rifle destroyed. System corrupted by crushing effect (+3). The unstable cave ceiling collapses. Crushed by falling debris. The unstable cave ceiling collapses. Crushed by falling debris. Map ----- +----------------------------------------------------+ | ????????????????????????????? | | ????????????????????????????? | | ????????????????????????????? | | ????????????????????????????? | | ????????????????????????????? | | ????????????????????????????? | | ????????????????????????????? | | ????????????????????????????? | | ????????????????????????????? | | ????????????????????????????? | | ????????????????????????????? | | ???????????????????????? ???? | | ??????????????????????? ??? | | ??####+##?????????????? ???? | | ?? #????????????? ????? | | ??""" #???????????? ?????? | | ???"" ! ???????????? ??????? | | ???"" ???#########+#??????? | | ???? ????# #??????? | | ???? ????# ! #??????? | | ????#"#????# #??????? | | ????###????# #??????? | | ????####???# #??????? | | ????####???# ! #??????? | | ???#####???# #??????? | | ??##@####??# #??????? | | ??###############+########### | | ??## ^ | | ???# | | ???# | | ???# ##########+########### | | ???# ####?# #??????? | | ???# #????#""" #??????? | | ???# #????#""" #??????? | | ???# #????#""" #??????? | | ???# #????# #??????? | | ???# #????#""" #??????? | | ???# #????#""" #??????? | | ???# #????#""" #??????? | | ???# < #????# ##?????? | | ???# #????#########"##????? | | ???#####???????????########## | | ????????????????????# + | | ????????????????????# ## | | ????????????????????# """#? | | ????????????????????# """#? | | ????????????????????# """#? | | ????????????????????# #? | | ????????????????????########? | | ????????????????????????## ## | +----------------------------------------------------+ Best States ------------- Heat Dissipation 25 Energy Generation 10 Energy Capacity 250 Matter Stores 115 Matter Capacity 300 Sight Range 16 Terrain Scan Density 10 Evasion (%) 55 Item Schematics ----------------- None Robot Schematics ------------------ None Fabricated ------------ Nothing Repaired ---------- Nothing Studied --------- None Alien Tech Used ----------------- None Achievements -------------- You Again Challenges ------------ None Game ------ Seed WeightRecoilTearclaws Manual? 0 Play Time 00:07:23 Cumulative 16.0 hours Start 2026.08.08 @ 21:02:18 End 2026.08.08 @ 21:06:43 Sessions 1 Manual Loads 0 Difficulty Rogue Special Mode None Game No. 9 Rogue 5 Adventurer 4 Explorer 0 Win Type - Total 0 Types 0/0/0/0/0/0/0/0/0/0 Lore% 22 Gallery% 16 Achievement% 18 Wizard Run 0 Options --------- Layout 1 ASCII 0 Keyboard 0 Movement Mouse Keybinds 0 Fullscreen 1 Font 32/SmallcapsGlow Map View 50x35 Zoom Use 0% Tactical HUD 0 Map Filters NONE Filters NONE Steam 1 RUN: 8f772dad-b8fe-4f5c-961c-f516c1139984